{"text_format":"3","workbook":"xlsx","n_sheets":1,"sheets":["Propuesta"],"not_rendered":{"images":1,"defined_names":20},"read":"whole","date_system":"1900"}

{"sheet":"Propuesta","index":0,"n_rows":39,"n_cols":7,"rows_kept":39,"merged":[[0,1,3,1],[0,3,0,6],[1,4,1,6],[2,4,2,6],[32,3,35,4],[36,3,36,6],[37,3,37,5],[38,3,38,5]]}
[{"$nulls":3},"PROPUESTA DE CONSTRUCCIÓN"]
[{"$nulls":3},"Nombre de la empresa","| Escriba la dirección de la empresa en esta celda."]
[{"$nulls":3},"Teléfono","| Escriba el número de fax y la dirección de correo electrónico de contacto de la empresa en esta celda."]
[{"$nulls":3},"CANTIDAD","DESCRIPCIÓN","PRECIO POR UNIDAD","IMPORTE"]
[null,"CLIENTE",null,10,"Artículo 1",{"v":165,"d":"165.00 €"},{"$f":"IFERROR(ElementosDeLínea[[#This Row],[CANTIDAD]]*ElementosDeLínea[[#This Row],[PRECIO POR UNIDAD]], \"\")","v":{"v":1650,"d":"1,650.00 €"}}]
[null,"Escriba el nombre del cliente en esta celda.",null,21,"Artículo 2",{"v":40,"d":"40.00 €"},{"$f":"IFERROR(ElementosDeLínea[[#This Row],[CANTIDAD]]*ElementosDeLínea[[#This Row],[PRECIO POR UNIDAD]], \"\")","v":{"v":840,"d":"840.00 €"}}]
[null,"N.º DE PRESUPUESTO",null,5,"Artículo 3",{"v":10.5,"d":"10.50 €"},{"$f":"IFERROR(ElementosDeLínea[[#This Row],[CANTIDAD]]*ElementosDeLínea[[#This Row],[PRECIO POR UNIDAD]], \"\")","v":{"v":52.5,"d":"52.50 €"}}]
[null,"C-1234",null,164,"Artículo 4",{"v":2.75,"d":"2.75 €"},{"$f":"IFERROR(ElementosDeLínea[[#This Row],[CANTIDAD]]*ElementosDeLínea[[#This Row],[PRECIO POR UNIDAD]], \"\")","v":{"v":451,"d":"451.00 €"}}]
[null,"FECHA",null,6,"Artículo 5",{"v":12,"d":"12.00 €"},{"$f":"IFERROR(ElementosDeLínea[[#This Row],[CANTIDAD]]*ElementosDeLínea[[#This Row],[PRECIO POR UNIDAD]], \"\")","v":{"v":72,"d":"72.00 €"}}]
[null,{"$f":"TODAY()","v":"2018-11-19"},null,18,"Artículo 6",{"v":5.5,"d":"5.50 €"},{"$f":"IFERROR(ElementosDeLínea[[#This Row],[CANTIDAD]]*ElementosDeLínea[[#This Row],[PRECIO POR UNIDAD]], \"\")","v":{"v":99,"d":"99.00 €"}}]
[null,"DIRECCIÓN",null,1,"Artículo 7",{"v":25,"d":"25.00 €"},{"$f":"IFERROR(ElementosDeLínea[[#This Row],[CANTIDAD]]*ElementosDeLínea[[#This Row],[PRECIO POR UNIDAD]], \"\")","v":{"v":25,"d":"25.00 €"}}]
[null,"Escriba la dirección del cliente en esta celda.",{"$nulls":4},{"$f":"IFERROR(ElementosDeLínea[[#This Row],[CANTIDAD]]*ElementosDeLínea[[#This Row],[PRECIO POR UNIDAD]], \"\")","v":{"v":0,"d":"0.00 €"}}]
[null,"CIUDAD/ESTADO O PROVINCIA/CÓDIGO POSTAL",{"$nulls":4},{"$f":"IFERROR(ElementosDeLínea[[#This Row],[CANTIDAD]]*ElementosDeLínea[[#This Row],[PRECIO POR UNIDAD]], \"\")","v":{"v":0,"d":"0.00 €"}}]
[null,"Escriba la ciudad, la provincia o el estado y el código postal del cliente en esta celda.",{"$nulls":4},{"$f":"IFERROR(ElementosDeLínea[[#This Row],[CANTIDAD]]*ElementosDeLínea[[#This Row],[PRECIO POR UNIDAD]], \"\")","v":{"v":0,"d":"0.00 €"}}]
[null,"TELÉFONO",{"$nulls":4},{"$f":"IFERROR(ElementosDeLínea[[#This Row],[CANTIDAD]]*ElementosDeLínea[[#This Row],[PRECIO POR UNIDAD]], \"\")","v":{"v":0,"d":"0.00 €"}}]
[null,"Escriba el número de teléfono del cliente en esta celda.",{"$nulls":4},{"$f":"IFERROR(ElementosDeLínea[[#This Row],[CANTIDAD]]*ElementosDeLínea[[#This Row],[PRECIO POR UNIDAD]], \"\")","v":{"v":0,"d":"0.00 €"}}]
[null,"CORREO ELECTRÓNICO",{"$nulls":4},{"$f":"IFERROR(ElementosDeLínea[[#This Row],[CANTIDAD]]*ElementosDeLínea[[#This Row],[PRECIO POR UNIDAD]], \"\")","v":{"v":0,"d":"0.00 €"}}]
[null,"Escriba la dirección de correo electrónico del cliente en esta celda.",{"$nulls":4},{"$f":"IFERROR(ElementosDeLínea[[#This Row],[CANTIDAD]]*ElementosDeLínea[[#This Row],[PRECIO POR UNIDAD]], \"\")","v":{"v":0,"d":"0.00 €"}}]
[null,"VENDEDOR",{"$nulls":4},{"$f":"IFERROR(ElementosDeLínea[[#This Row],[CANTIDAD]]*ElementosDeLínea[[#This Row],[PRECIO POR UNIDAD]], \"\")","v":{"v":0,"d":"0.00 €"}}]
[null,"Escriba el nombre del vendedor en esta celda.",{"$nulls":4},{"$f":"IFERROR(ElementosDeLínea[[#This Row],[CANTIDAD]]*ElementosDeLínea[[#This Row],[PRECIO POR UNIDAD]], \"\")","v":{"v":0,"d":"0.00 €"}}]
[null,"PROYECTO",{"$nulls":4},{"$f":"IFERROR(ElementosDeLínea[[#This Row],[CANTIDAD]]*ElementosDeLínea[[#This Row],[PRECIO POR UNIDAD]], \"\")","v":{"v":0,"d":"0.00 €"}}]
[null,"Escriba el nombre del proyecto en esta celda.",{"$nulls":4},{"$f":"IFERROR(ElementosDeLínea[[#This Row],[CANTIDAD]]*ElementosDeLínea[[#This Row],[PRECIO POR UNIDAD]], \"\")","v":{"v":0,"d":"0.00 €"}}]
[null,"PREPARADO POR:",{"$nulls":4},{"$f":"IFERROR(ElementosDeLínea[[#This Row],[CANTIDAD]]*ElementosDeLínea[[#This Row],[PRECIO POR UNIDAD]], \"\")","v":{"v":0,"d":"0.00 €"}}]
[null,"Escriba el nombre de la persona que lo ha preparado en esta celda.",{"$nulls":4},{"$f":"IFERROR(ElementosDeLínea[[#This Row],[CANTIDAD]]*ElementosDeLínea[[#This Row],[PRECIO POR UNIDAD]], \"\")","v":{"v":0,"d":"0.00 €"}}]
[null,"A LA ATENCIÓN DE:",{"$nulls":4},{"$f":"IFERROR(ElementosDeLínea[[#This Row],[CANTIDAD]]*ElementosDeLínea[[#This Row],[PRECIO POR UNIDAD]], \"\")","v":{"v":0,"d":"0.00 €"}}]
[null,"Escriba el nombre de la persona a quien va dirigida la propuesta en esta celda.",{"$nulls":4},{"$f":"IFERROR(ElementosDeLínea[[#This Row],[CANTIDAD]]*ElementosDeLínea[[#This Row],[PRECIO POR UNIDAD]], \"\")","v":{"v":0,"d":"0.00 €"}}]
[null,"CONDICIONES DE PAGO",{"$nulls":4},{"$f":"IFERROR(ElementosDeLínea[[#This Row],[CANTIDAD]]*ElementosDeLínea[[#This Row],[PRECIO POR UNIDAD]], \"\")","v":{"v":0,"d":"0.00 €"}}]
[null,"A 30 días",{"$nulls":4},{"$f":"IFERROR(ElementosDeLínea[[#This Row],[CANTIDAD]]*ElementosDeLínea[[#This Row],[PRECIO POR UNIDAD]], \"\")","v":{"v":0,"d":"0.00 €"}}]
[null,"FECHA DE VENCIMIENTO",{"$nulls":4},{"$f":"IFERROR(ElementosDeLínea[[#This Row],[CANTIDAD]]*ElementosDeLínea[[#This Row],[PRECIO POR UNIDAD]], \"\")","v":{"v":0,"d":"0.00 €"}}]
[null,{"$f":"TODAY()+30","v":"2018-12-19"},{"$nulls":4},{"$f":"IFERROR(ElementosDeLínea[[#This Row],[CANTIDAD]]*ElementosDeLínea[[#This Row],[PRECIO POR UNIDAD]], \"\")","v":{"v":0,"d":"0.00 €"}}]
[{"$nulls":5},"SUBTOTAL",{"$f":"SUBTOTAL(109,ElementosDeLínea[IMPORTE])","v":{"v":3189.5,"d":"3,189.50 €"}}]
[{"$nulls":3},"ESTA PROPUESTA INCLUYE LAS CONDICIONES QUE SE INDICAN A CONTINUACIÓN:",null,"TASA DE IMPUESTO ",{"v":0.0775,"d":"7.75%"}]
[{"$nulls":3},"Escriba aquí las condiciones.",null,"IMPUESTO SOBRE LAS VENTAS ",{"$f":"IFERROR(Subtotal*TipoImpositivo, \"\")","v":{"v":247.18625,"d":"247.19 €"}}]
[{"$nulls":5},"OTROS "]
[{"$nulls":5},"TOTAL ",{"$f":"IFERROR(Subtotal+G33+Otros, \"\")","v":{"v":3436.68625,"d":"3,436.69 €"}}]
[]
[{"$nulls":3},"Firme a continuación para aceptar la oferta:"]
[]
[{"$nulls":3},"Representante autorizado",null,null,"Fecha"]